[Event "*** Titled Tuesday Blitz"]
[Site "Chess.com"]
[Date "2020.05.26"]
[Round "3"]
[White "anon569"]
[Black "GMStefanova"]
[Result "0-1"]
[WhiteElo "2265"]
[BlackElo "2622"]
[TimeControl "180+1"]
[EndTime "10:28:19 PDT"]
[Termination "GMStefanova won by checkmate"]

1. e4 {[%clk 0:03:00.9]} 1... c6 {[%clk 0:02:59]} 2. d4 {[%clk 0:03:00.1]} 2...
d5 {[%clk 0:02:58.9]} 3. Nc3 {[%clk 0:03:00.6]} 3... dxe4 {[%clk 0:02:58.3]} 4.
Nxe4 {[%clk 0:03:01.1]} 4... Nf6 {[%clk 0:02:58.5]} 5. Nxf6+ {[%clk 0:03:00.6]}
5... exf6 {[%clk 0:02:58.6]} 6. Nf3 {[%clk 0:03:00.6]} 6... Bd6 {[%clk
0:02:54.6]} 7. Be3 {[%clk 0:03:00.7]} 7... O-O {[%clk 0:02:52.3]} 8. Qd2 {[%clk
0:03:01.1]} 8... Be6 {[%clk 0:02:48]} 9. Bd3 {[%clk 0:02:50.3]} 9... Re8 {[%clk
0:02:45.2]} 10. O-O {[%clk 0:02:35.3]} 10... Nd7 {[%clk 0:02:44.9]} 11. h3
{[%clk 0:02:35.5]} 11... Nf8 {[%clk 0:02:43.3]} 12. Rfe1 {[%clk 0:02:32.3]}
12... Ng6 {[%clk 0:02:42.1]} 13. c4 {[%clk 0:02:31.6]} 13... Bc7 {[%clk
0:02:39.7]} 14. Rad1 {[%clk 0:02:22.4]} 14... Qd6 {[%clk 0:02:34.9]} 15. Qc2
{[%clk 0:02:16.1]} 15... Rad8 {[%clk 0:02:20.4]} 16. d5 {[%clk 0:01:54.2]} 16...
cxd5 {[%clk 0:02:15]} 17. cxd5 {[%clk 0:01:51.6]} 17... Bc8 {[%clk 0:02:01.4]}
18. Bb5 {[%clk 0:01:02.8]} 18... Ne5 {[%clk 0:01:45.6]} 19. Bxe8 {[%clk
0:00:49.3]} 19... Nxf3+ {[%clk 0:01:42.1]} 20. gxf3 {[%clk 0:00:49.5]} 20...
Qh2+ {[%clk 0:01:25]} 21. Kf1 {[%clk 0:00:49.4]} 21... Rxe8 {[%clk 0:01:17]} 22.
Rc1 {[%clk 0:00:48.5]} 22... Bxh3+ {[%clk 0:01:10.4]} 23. Ke2 {[%clk 0:00:44.1]}
23... Bb6 {[%clk 0:01:03.7]} 24. Kd1 {[%clk 0:00:04.6]} 24... g6 {[%clk
0:00:16]} 25. Bxb6 {[%clk 0:00:04.2]} 25... Rxe1+ {[%clk 0:00:15.3]} 26. Kxe1
{[%clk 0:00:04.8]} 26... axb6 {[%clk 0:00:15.5]} 27. Qe2 {[%clk 0:00:05.2]}
27... Qd6 {[%clk 0:00:12.7]} 28. Qe4 {[%clk 0:00:04.7]} 28... Bf5 {[%clk
0:00:11]} 29. Qd4 {[%clk 0:00:04.4]} 29... Kg7 {[%clk 0:00:10.7]} 30. Kd1 {[%clk
0:00:05]} 30... h5 {[%clk 0:00:10.5]} 31. Rc3 {[%clk 0:00:05.5]} 31... h4 {[%clk
0:00:10.1]} 32. f4 {[%clk 0:00:06.2]} 32... h3 {[%clk 0:00:10.1]} 33. Rc1 {[%clk
0:00:06.5]} 33... h2 {[%clk 0:00:09.9]} 34. Kd2 {[%clk 0:00:07.1]} 34... b5
{[%clk 0:00:06]} 35. Rh1 {[%clk 0:00:07.3]} 35... Qa6 {[%clk 0:00:04.9]} 36. a3
{[%clk 0:00:04.8]} 36... b4 {[%clk 0:00:03.8]} 37. axb4 {[%clk 0:00:03.4]} 37...
Bg4 {[%clk 0:00:04.1]} 38. Rxh2 {[%clk 0:00:03.3]} 38... Qe2+ {[%clk 0:00:03.9]}
39. Kc3 {[%clk 0:00:02.7]} 39... Bf5 {[%clk 0:00:04.1]} 40. Qd3 {[%clk
0:00:02.2]} 40... Qxd3# {[%clk 0:00:03.1]} 0-1

[Event "*** Titled Tuesday Blitz"]
[Site "Chess.com"]
[Date "2020.05.26"]
[Round "3"]
[White "BIG_Pirate"]
[Black "Moon_stone123"]
[Result "0-1"]
[WhiteElo "2323"]
[BlackElo "2526"]
[TimeControl "180+1"]
[EndTime "10:28:19 PDT"]
[Termination "Moon_stone123 won on time"]

1. Nf3 {[%clk 0:03:00.9]} 1... Nf6 {[%clk 0:02:59.1]} 2. c4 {[%clk 0:02:59.8]}
2... g6 {[%clk 0:02:59.3]} 3. Nc3 {[%clk 0:02:59.5]} 3... Bg7 {[%clk 0:02:59.4]}
4. g3 {[%clk 0:02:59.4]} 4... O-O {[%clk 0:02:58.8]} 5. Bg2 {[%clk 0:02:59.2]}
5... Nc6 {[%clk 0:02:59.2]} 6. O-O {[%clk 0:02:58.6]} 6... d6 {[%clk 0:02:57.7]}
7. Rb1 {[%clk 0:02:58.2]} 7... a5 {[%clk 0:02:56]} 8. a3 {[%clk 0:02:58.1]} 8...
e5 {[%clk 0:02:56.4]} 9. d3 {[%clk 0:02:57.6]} 9... Re8 {[%clk 0:02:55.4]} 10.
Bg5 {[%clk 0:02:56.1]} 10... h6 {[%clk 0:02:54.3]} 11. Bxf6 {[%clk 0:02:56]}
11... Bxf6 {[%clk 0:02:55.2]} 12. b4 {[%clk 0:02:55.8]} 12... axb4 {[%clk
0:02:54.6]} 13. axb4 {[%clk 0:02:56.7]} 13... Bg7 {[%clk 0:02:52.2]} 14. b5
{[%clk 0:02:55.9]} 14... Ne7 {[%clk 0:02:50]} 15. Ne1 {[%clk 0:02:50.3]} 15...
f5 {[%clk 0:02:40.2]} 16. Qb3 {[%clk 0:02:48.2]} 16... Kh8 {[%clk 0:02:38.8]}
17. Nc2 {[%clk 0:02:48.3]} 17... Rb8 {[%clk 0:01:47.6]} 18. Nb4 {[%clk
0:02:45.4]} 18... Be6 {[%clk 0:01:46.1]} 19. Nbd5 {[%clk 0:02:39.5]} 19... Bxd5
{[%clk 0:01:28]} 20. Nxd5 {[%clk 0:02:38.8]} 20... Nxd5 {[%clk 0:01:27.4]} 21.
Bxd5 {[%clk 0:02:39.7]} 21... Qf6 {[%clk 0:01:21.7]} 22. Rfc1 {[%clk 0:02:37.4]}
22... e4 {[%clk 0:01:18.3]} 23. e3 {[%clk 0:02:28.5]} 23... Kh7 {[%clk
0:01:03.3]} 24. Qc2 {[%clk 0:01:26.9]} 24... h5 {[%clk 0:00:35.7]} 25. dxe4
{[%clk 0:01:26.3]} 25... fxe4 {[%clk 0:00:35.7]} 26. Bxe4 {[%clk 0:01:26.2]}
26... Rf8 {[%clk 0:00:32]} 27. h4 {[%clk 0:01:19.2]} 27... Bh6 {[%clk
0:00:29.2]} 28. Bg2 {[%clk 0:01:06.9]} 28... Rbe8 {[%clk 0:00:26.6]} 29. Bxb7
{[%clk 0:00:57.3]} 29... Bxe3 {[%clk 0:00:20.5]} 30. fxe3 {[%clk 0:00:28.2]}
30... Rxe3 {[%clk 0:00:21.4]} 31. Rf1 {[%clk 0:00:15.2]} 31... Rxg3+ {[%clk
0:00:21.2]} 32. Bg2 {[%clk 0:00:15.5]} 32... Qd4+ {[%clk 0:00:21.1]} 33. Kh2
{[%clk 0:00:14.7]} 33... Qxh4+ {[%clk 0:00:20.6]} 34. Kg1 {[%clk 0:00:15.2]}
34... Qd4+ {[%clk 0:00:18.4]} 35. Rf2 {[%clk 0:00:13.4]} 35... h4 {[%clk
0:00:12]} 36. Qd2 {[%clk 0:00:05.5]} 36... Qc5 {[%clk 0:00:06.7]} 37. Rf1 {[%clk
0:00:01.6]} 37... h3 {[%clk 0:00:06.3]} 38. Kh2 {[%clk 0:00:01.5]} 38... Rxg2+
{[%clk 0:00:06.7]} 39. Rxg2 {[%clk 0:00:01.4]} 39... hxg2 {[%clk 0:00:07.1]} 40.
Kxg2 {[%clk 0:00:01.6]} 40... Rxf1 {[%clk 0:00:04.9]} 41. Kxf1 {[%clk
0:00:01.1]} 41... Qxc4+ {[%clk 0:00:04.9]} 42. Kg1 {[%clk 0:00:01.4]} 42... Qxb5
{[%clk 0:00:05.2]} 0-1

[Event "*** Titled Tuesday Blitz"]
[Site "Chess.com"]
[Date "2020.05.26"]
[Round "3"]
[White "Malysch"]
[Black "yobdc"]
[Result "1/2-1/2"]
[WhiteElo "2454"]
[BlackElo "2048"]
[TimeControl "180+1"]
[EndTime "10:28:19 PDT"]
[Termination "Game drawn by repetition"]

1. d4 {[%clk 0:03:00.9]} 1... Nf6 {[%clk 0:02:59.7]} 2. c4 {[%clk 0:03:00.8]}
2... c6 {[%clk 0:02:59.7]} 3. Nf3 {[%clk 0:03:00.1]} 3... d5 {[%clk 0:03:00]} 4.
Qc2 {[%clk 0:03:00.3]} 4... g6 {[%clk 0:02:59.1]} 5. Bf4 {[%clk 0:02:59.3]} 5...
Bf5 {[%clk 0:02:58]} 6. Qb3 {[%clk 0:02:58.7]} 6... Qb6 {[%clk 0:02:58.3]} 7. e3
{[%clk 0:02:59.2]} 7... Bxb1 {[%clk 0:02:42.7]} 8. Rxb1 {[%clk 0:02:58.1]} 8...
e6 {[%clk 0:02:42.9]} 9. Be2 {[%clk 0:02:50.8]} 9... Qxb3 {[%clk 0:02:40.3]} 10.
axb3 {[%clk 0:02:49.9]} 10... Bb4+ {[%clk 0:02:40.4]} 11. Kd1 {[%clk 0:02:48.2]}
11... Nbd7 {[%clk 0:02:39.2]} 12. Kc2 {[%clk 0:02:47.6]} 12... Ne4 {[%clk
0:02:36]} 13. Rhf1 {[%clk 0:02:45.8]} 13... f6 {[%clk 0:02:29.1]} 14. Ne1 {[%clk
0:02:24]} 14... g5 {[%clk 0:02:27.6]} 15. Bg3 {[%clk 0:02:21.8]} 15... h5 {[%clk
0:02:25.4]} 16. Nd3 {[%clk 0:02:18.9]} 16... Be7 {[%clk 0:02:17.7]} 17. f3
{[%clk 0:02:07.3]} 17... Nxg3 {[%clk 0:02:15.6]} 18. hxg3 {[%clk 0:02:08.2]}
18... h4 {[%clk 0:02:14.1]} 19. Rh1 {[%clk 0:02:01.8]} 19... Kf7 {[%clk
0:02:10.6]} 20. gxh4 {[%clk 0:02:00.6]} 20... gxh4 {[%clk 0:01:58.8]} 21. Rh2
{[%clk 0:01:57.3]} 21... f5 {[%clk 0:01:48.8]} 22. Rbh1 {[%clk 0:01:50.5]} 22...
Rhg8 {[%clk 0:01:48.9]} 23. f4 {[%clk 0:01:44.7]} 23... Rg3 {[%clk 0:01:47]} 24.
Bh5+ {[%clk 0:01:37.1]} 24... Kg7 {[%clk 0:01:43.5]} 25. Bf3 {[%clk 0:01:38]}
25... Rc8 {[%clk 0:01:26.8]} 26. Kd2 {[%clk 0:01:34.4]} 26... Rh8 {[%clk
0:01:22.2]} 27. Ke2 {[%clk 0:01:31.7]} 27... Nb6 {[%clk 0:01:09.5]} 28. Ne5
{[%clk 0:01:01.4]} 28... Bf6 {[%clk 0:01:06.8]} 29. Kd3 {[%clk 0:00:52.9]} 29...
Rd8 {[%clk 0:01:03.2]} 30. Rh3 {[%clk 0:00:42.2]} 30... Rxh3 {[%clk 0:00:58.2]}
31. gxh3 {[%clk 0:00:35.8]} 31... Bxe5 {[%clk 0:00:50.1]} 32. Rg1+ {[%clk
0:00:31.9]} 32... Kh7 {[%clk 0:00:41.2]} 33. fxe5 {[%clk 0:00:31.8]} 33... Rg8
{[%clk 0:00:38.3]} 34. Rxg8 {[%clk 0:00:27.2]} 34... Kxg8 {[%clk 0:00:39.2]} 35.
c5 {[%clk 0:00:25.4]} 35... Nc8 {[%clk 0:00:28.7]} 36. Bh5 {[%clk 0:00:21.6]}
36... Ne7 {[%clk 0:00:27.8]} 37. Ke2 {[%clk 0:00:20.2]} 37... Kg7 {[%clk
0:00:24.2]} 38. Kf3 {[%clk 0:00:20]} 38... Ng6 {[%clk 0:00:15.7]} 39. Bxg6
{[%clk 0:00:17.5]} 39... Kxg6 {[%clk 0:00:16.6]} 40. Kg2 {[%clk 0:00:15.8]}
40... Kg5 {[%clk 0:00:16.4]} 41. Kf3 {[%clk 0:00:15]} 41... a5 {[%clk
0:00:15.2]} 42. Ke2 {[%clk 0:00:05.6]} 42... f4 {[%clk 0:00:10.3]} 43. Kf3
{[%clk 0:00:05.1]} 43... fxe3 {[%clk 0:00:10.4]} 44. Kxe3 {[%clk 0:00:06]} 44...
Kf5 {[%clk 0:00:10]} 45. Kf3 {[%clk 0:00:06.4]} 45... Kg5 {[%clk 0:00:10.1]} 46.
Ke3 {[%clk 0:00:06.8]} 46... Kf5 {[%clk 0:00:09.6]} 47. Kf3 {[%clk 0:00:07.2]}
47... Kg5 {[%clk 0:00:09]} 48. Ke3 {[%clk 0:00:07.4]} 1/2-1/2

[Event "*** Titled Tuesday Blitz"]
[Site "Chess.com"]
[Date "2020.05.26"]
[Round "3"]
[White "hectorfiori"]
[Black "PetrolulSah"]
[Result "0-1"]
[WhiteElo "2399"]
[BlackElo "2202"]
[TimeControl "180+1"]
[EndTime "10:28:19 PDT"]
[Termination "PetrolulSah won by resignation"]

1. e4 {[%clk 0:03:00.9]} 1... e5 {[%clk 0:02:58]} 2. Nf3 {[%clk 0:02:59.7]} 2...
Nf6 {[%clk 0:02:57]} 3. Nxe5 {[%clk 0:02:58.5]} 3... d6 {[%clk 0:02:56.9]} 4.
Nf3 {[%clk 0:02:57.8]} 4... Nxe4 {[%clk 0:02:57.1]} 5. Nc3 {[%clk 0:02:56.8]}
5... Nxc3 {[%clk 0:02:56.1]} 6. dxc3 {[%clk 0:02:57.7]} 6... Bf5 {[%clk
0:02:55.4]} 7. Bf4 {[%clk 0:02:55.9]} 7... Nc6 {[%clk 0:02:54.8]} 8. Qd2 {[%clk
0:02:55.9]} 8... Be7 {[%clk 0:02:53.2]} 9. O-O-O {[%clk 0:02:55.8]} 9... Qd7
{[%clk 0:02:52.1]} 10. h3 {[%clk 0:02:52.2]} 10... h5 {[%clk 0:02:50.9]} 11. Bb5
{[%clk 0:02:43.4]} 11... O-O-O {[%clk 0:02:48.1]} 12. Rhe1 {[%clk 0:02:43.5]}
12... Bf6 {[%clk 0:02:45.3]} 13. Qd5 {[%clk 0:02:25.5]} 13... Be6 {[%clk
0:02:42.9]} 14. Bxc6 {[%clk 0:02:24.1]} 14... Qxc6 {[%clk 0:02:39.8]} 15. Qxc6
{[%clk 0:02:22.7]} 15... bxc6 {[%clk 0:02:40.7]} 16. Ng5 {[%clk 0:02:14.1]}
16... Bxa2 {[%clk 0:02:30.5]} 17. b3 {[%clk 0:02:13.2]} 17... Bxc3 {[%clk
0:02:29.2]} 18. Re4 {[%clk 0:02:01.4]} 18... f6 {[%clk 0:01:57.9]} 19. Nf3
{[%clk 0:01:42]} 19... Rde8 {[%clk 0:01:54]} 20. Ra4 {[%clk 0:01:39.9]} 20...
Bxb3 {[%clk 0:01:50.9]} 21. cxb3 {[%clk 0:01:39.4]} 21... Re2 {[%clk 0:01:50.6]}
22. Be3 {[%clk 0:01:35.5]} 22... Re8 {[%clk 0:01:32]} 23. Rxa7 {[%clk
0:01:24.9]} 23... Kd7 {[%clk 0:01:31.4]} 24. Rd3 {[%clk 0:01:00.2]} 24... Be5
{[%clk 0:01:20.3]} 25. Nxe5+ {[%clk 0:00:55.5]} 25... Rxe5 {[%clk 0:01:15.3]}
26. Kd1 {[%clk 0:00:48.2]} 26... Rb2 {[%clk 0:01:07.3]} 27. Ra3 {[%clk
0:00:34.5]} 27... Rb5 {[%clk 0:01:04.7]} 28. Kc1 {[%clk 0:00:32.9]} 28... Re2
{[%clk 0:01:03.5]} 29. Rd2 {[%clk 0:00:31.9]} 29... Re1+ {[%clk 0:00:52.9]} 30.
Kc2 {[%clk 0:00:30.2]} 30... h4 {[%clk 0:00:50.7]} 31. Ra4 {[%clk 0:00:28.4]}
31... g5 {[%clk 0:00:48.2]} 32. Rd1 {[%clk 0:00:21]} 32... Re2+ {[%clk
0:00:46.6]} 33. Kd3 {[%clk 0:00:20.5]} 33... Rb2 {[%clk 0:00:45.1]} 34. Rc1
{[%clk 0:00:15.4]} 34... R2xb3+ {[%clk 0:00:44.7]} 35. Rc3 {[%clk 0:00:15.5]}
35... Rxc3+ {[%clk 0:00:42.6]} 36. Kxc3 {[%clk 0:00:16.4]} 36... c5 {[%clk
0:00:41.6]} 37. Ra8 {[%clk 0:00:13.7]} 37... Rb1 {[%clk 0:00:40]} 38. g3 {[%clk
0:00:11.1]} 38... Rh1 {[%clk 0:00:37.6]} 39. gxh4 {[%clk 0:00:10.9]} 39... gxh4
{[%clk 0:00:37.7]} 40. Rf8 {[%clk 0:00:10.2]} 40... Ke7 {[%clk 0:00:35.9]} 41.
Rc8 {[%clk 0:00:10.6]} 41... Kd7 {[%clk 0:00:35.7]} 42. Rf8 {[%clk 0:00:10.7]}
42... Ke7 {[%clk 0:00:34.5]} 43. Rh8 {[%clk 0:00:10.6]} 43... Rxh3 {[%clk
0:00:34.2]} 44. Kd3 {[%clk 0:00:10.8]} 44... Rh1 {[%clk 0:00:32.1]} 45. Ke4
{[%clk 0:00:11]} 45... Ke6 {[%clk 0:00:30.1]} 46. Re8+ {[%clk 0:00:08.4]} 46...
Kd7 {[%clk 0:00:29.6]} 47. Rh8 {[%clk 0:00:07.5]} 47... c4 {[%clk 0:00:25.3]}
48. Kd4 {[%clk 0:00:05.8]} 48... h3 {[%clk 0:00:22.6]} 49. Kxc4 {[%clk
0:00:05.5]} 49... h2 {[%clk 0:00:22.7]} 50. Kd3 {[%clk 0:00:05.4]} 50... Rd1+
{[%clk 0:00:22]} 0-1

[Event "*** Titled Tuesday Blitz"]
[Site "Chess.com"]
[Date "2020.05.26"]
[Round "3"]
[White "attack2mateU"]
[Black "LyonBeast"]
[Result "0-1"]
[WhiteElo "2670"]
[BlackElo "2960"]
[TimeControl "180+1"]
[EndTime "10:28:20 PDT"]
[Termination "LyonBeast won by resignation"]

1. e4 {[%clk 0:03:00.9]} 1... c6 {[%clk 0:02:57.1]} 2. Nc3 {[%clk 0:02:59.7]}
2... d5 {[%clk 0:02:56.2]} 3. Nf3 {[%clk 0:03:00.4]} 3... Bg4 {[%clk 0:02:54.2]}
4. h3 {[%clk 0:02:59.2]} 4... Bh5 {[%clk 0:02:54.4]} 5. exd5 {[%clk 0:02:56]}
5... cxd5 {[%clk 0:02:54.1]} 6. Bb5+ {[%clk 0:02:52.4]} 6... Nc6 {[%clk
0:02:54.2]} 7. g4 {[%clk 0:02:52.8]} 7... Bg6 {[%clk 0:02:54.2]} 8. Ne5 {[%clk
0:02:53.3]} 8... Rc8 {[%clk 0:02:54.3]} 9. d4 {[%clk 0:02:23.4]} 9... e6 {[%clk
0:02:48.1]} 10. Be3 {[%clk 0:01:58.7]} 10... Bd6 {[%clk 0:02:43.6]} 11. f4
{[%clk 0:01:40.6]} 11... Ne7 {[%clk 0:02:30.7]} 12. h4 {[%clk 0:01:11.2]} 12...
h5 {[%clk 0:02:22]} 13. Nxg6 {[%clk 0:01:11.2]} 13... Nxg6 {[%clk 0:02:20.4]}
14. gxh5 {[%clk 0:01:10.2]} 14... Nxf4 {[%clk 0:02:17.4]} 15. Bxf4 {[%clk
0:00:48.5]} 15... Bxf4 {[%clk 0:02:15.6]} 16. Qg4 {[%clk 0:00:49.1]} 16... Bh6
{[%clk 0:02:05.4]} 17. O-O {[%clk 0:00:26.8]} 17... O-O {[%clk 0:02:01.7]} 18.
Bxc6 {[%clk 0:00:23.7]} 18... bxc6 {[%clk 0:01:59.9]} 19. Na4 {[%clk 0:00:21.3]}
19... Rb8 {[%clk 0:01:30.1]} 20. b3 {[%clk 0:00:20.9]} 20... Qd6 {[%clk
0:01:29.2]} 21. Kg2 {[%clk 0:00:19.7]} 21... e5 {[%clk 0:01:25.1]} 22. dxe5
{[%clk 0:00:19.3]} 22... Qxe5 {[%clk 0:01:26]} 23. Rae1 {[%clk 0:00:19.4]} 23...
Qd6 {[%clk 0:01:25.9]} 24. Qg3 {[%clk 0:00:18.7]} 24... Qd8 {[%clk 0:01:22.5]}
25. Nc5 {[%clk 0:00:17.5]} 25... Rb4 {[%clk 0:01:22.3]} 26. Nd3 {[%clk
0:00:16.7]} 26... Rxh4 {[%clk 0:01:20.3]} 27. Ne5 {[%clk 0:00:17.2]} 27... Rxh5
{[%clk 0:01:19.8]} 28. Nf3 {[%clk 0:00:14.4]} 28... Qc8 {[%clk 0:01:10.7]} 29.
Rh1 {[%clk 0:00:13.9]} 29... Qf5 {[%clk 0:01:07.7]} 30. Rxh5 {[%clk 0:00:13.4]}
30... Qxh5 {[%clk 0:01:08.6]} 31. Re7 {[%clk 0:00:13.1]} 31... Qf5 {[%clk
0:01:06.3]} 32. Rxa7 {[%clk 0:00:09.7]} 32... Qxc2+ {[%clk 0:01:06]} 33. Qf2
{[%clk 0:00:10.3]} 33... Qxf2+ {[%clk 0:01:01.8]} 34. Kxf2 {[%clk 0:00:11.2]}
34... Re8 {[%clk 0:01:01.9]} 35. Rc7 {[%clk 0:00:10.9]} 35... Be3+ {[%clk
0:01:00.8]} 36. Kg2 {[%clk 0:00:10.3]} 36... Bf4 {[%clk 0:00:57.6]} 37. Rxc6
{[%clk 0:00:09.8]} 37... Re2+ {[%clk 0:00:58.1]} 38. Kh3 {[%clk 0:00:10]} 38...
Rxa2 {[%clk 0:00:58.7]} 39. Kg4 {[%clk 0:00:10.5]} 39... Be3 {[%clk 0:00:54.8]}
40. Rd6 {[%clk 0:00:07.3]} 40... d4 {[%clk 0:00:49.5]} 41. Kf5 {[%clk
0:00:06.1]} 41... Ra5+ {[%clk 0:00:42.5]} 42. Ke4 {[%clk 0:00:05.4]} 42... Rb5
{[%clk 0:00:41.5]} 43. Rd8+ {[%clk 0:00:04.5]} 43... Kh7 {[%clk 0:00:41.5]} 44.
Ne5 {[%clk 0:00:05.4]} 44... f6 {[%clk 0:00:39.1]} 45. Nd3 {[%clk 0:00:04.3]}
45... f5+ {[%clk 0:00:37.9]} 46. Kf3 {[%clk 0:00:03.7]} 46... Rxb3 {[%clk
0:00:38.5]} 47. Nc5 {[%clk 0:00:03.7]} 47... Rc3 {[%clk 0:00:36.7]} 48. Rd5
{[%clk 0:00:04]} 48... Kg6 {[%clk 0:00:32.7]} 49. Ke2 {[%clk 0:00:04.6]} 49...
Rc2+ {[%clk 0:00:26.8]} 50. Kf3 {[%clk 0:00:04.6]} 50... Rf2+ {[%clk 0:00:26.3]}
51. Kg3 {[%clk 0:00:04.5]} 51... f4+ {[%clk 0:00:26.6]} 52. Kg4 {[%clk
0:00:04.8]} 52... Rg2+ {[%clk 0:00:26.7]} 53. Kf3 {[%clk 0:00:05.4]} 53... Rg3+
{[%clk 0:00:27.1]} 54. Ke4 {[%clk 0:00:05.8]} 54... f3 {[%clk 0:00:27.6]} 55.
Nd3 {[%clk 0:00:05.8]} 55... f2 {[%clk 0:00:27.4]} 56. Rd6+ {[%clk 0:00:04.8]}
56... Kh7 {[%clk 0:00:26.9]} 0-1

[Event "*** Titled Tuesday Blitz"]
[Site "Chess.com"]
[Date "2020.05.26"]
[Round "3"]
[White "Nathan_Filgueiras"]
[Black "MFguimaraes"]
[Result "1/2-1/2"]
[WhiteElo "2325"]
[BlackElo "2514"]
[TimeControl "180+1"]
[EndTime "10:28:20 PDT"]
[Termination "Game drawn by repetition"]

1. e4 {[%clk 0:03:00.9]} 1... e5 {[%clk 0:03:00]} 2. Nf3 {[%clk 0:03:00]} 2...
Nc6 {[%clk 0:03:00]} 3. Bc4 {[%clk 0:02:59.6]} 3... Nf6 {[%clk 0:02:59.8]} 4. d3
{[%clk 0:02:59.6]} 4... h6 {[%clk 0:02:59]} 5. O-O {[%clk 0:02:57.5]} 5... Bc5
{[%clk 0:02:55.6]} 6. Re1 {[%clk 0:02:54.9]} 6... d6 {[%clk 0:02:33.3]} 7. c3
{[%clk 0:02:54.2]} 7... a6 {[%clk 0:02:29]} 8. Bb3 {[%clk 0:02:54.3]} 8... O-O
{[%clk 0:02:28.7]} 9. Nbd2 {[%clk 0:02:49.5]} 9... Re8 {[%clk 0:02:24.6]} 10.
Nf1 {[%clk 0:02:46.7]} 10... Be6 {[%clk 0:02:15.7]} 11. Bxe6 {[%clk 0:02:44.6]}
11... fxe6 {[%clk 0:02:15.9]} 12. Be3 {[%clk 0:02:40.2]} 12... Bxe3 {[%clk
0:02:11.4]} 13. Rxe3 {[%clk 0:02:35.2]} 13... d5 {[%clk 0:02:10.9]} 14. Re1
{[%clk 0:02:28.6]} 14... Qd6 {[%clk 0:02:07.5]} 15. Ng3 {[%clk 0:02:27.6]} 15...
Rad8 {[%clk 0:02:00.7]} 16. Qe2 {[%clk 0:02:15.6]} 16... d4 {[%clk 0:01:58.2]}
17. Rad1 {[%clk 0:01:36.4]} 17... Qc5 {[%clk 0:01:52.8]} 18. Rc1 {[%clk
0:01:31.4]} 18... Qa5 {[%clk 0:01:47.6]} 19. Qc2 {[%clk 0:01:19.6]} 19... Rd7
{[%clk 0:01:43.8]} 20. a3 {[%clk 0:01:13.1]} 20... dxc3 {[%clk 0:01:39.9]} 21.
Qxc3 {[%clk 0:01:03.5]} 21... Qxc3 {[%clk 0:01:29.2]} 22. Rxc3 {[%clk
0:01:04.4]} 22... Red8 {[%clk 0:01:29.5]} 23. Rd1 {[%clk 0:01:04.5]} 23... Rd6
{[%clk 0:01:25.7]} 24. Kf1 {[%clk 0:01:03.9]} 24... Kf7 {[%clk 0:01:25.4]} 25.
Ke2 {[%clk 0:01:03.9]} 25... g5 {[%clk 0:01:17.2]} 26. h3 {[%clk 0:01:03.1]}
26... Nd7 {[%clk 0:01:11.7]} 27. Rdc1 {[%clk 0:01:01.9]} 27... Ke7 {[%clk
0:00:58]} 28. Nf1 {[%clk 0:01:00.2]} 28... Rf8 {[%clk 0:00:39]} 29. Ne3 {[%clk
0:00:54.6]} 29... Nb6 {[%clk 0:00:38.4]} 30. Nc4 {[%clk 0:00:50.4]} 30... Nxc4
{[%clk 0:00:37.3]} 31. Rxc4 {[%clk 0:00:47.8]} 31... Kd8 {[%clk 0:00:36.7]} 32.
Rd1 {[%clk 0:00:44.2]} 32... Rf7 {[%clk 0:00:36.7]} 33. d4 {[%clk 0:00:39.6]}
33... exd4 {[%clk 0:00:36.6]} 34. Nxd4 {[%clk 0:00:39.2]} 34... Nxd4+ {[%clk
0:00:35.9]} 35. Rcxd4 {[%clk 0:00:39]} 35... Rfd7 {[%clk 0:00:29.8]} 36. Ke3
{[%clk 0:00:38.4]} 36... e5 {[%clk 0:00:27.7]} 37. Rxd6 {[%clk 0:00:36.7]} 37...
Rxd6 {[%clk 0:00:27.6]} 38. Rxd6+ {[%clk 0:00:20]} 38... cxd6 {[%clk 0:00:28.5]}
39. g3 {[%clk 0:00:20.9]} 39... Ke7 {[%clk 0:00:27.9]} 40. f4 {[%clk 0:00:21.4]}
40... exf4+ {[%clk 0:00:25]} 41. gxf4 {[%clk 0:00:22.3]} 41... gxf4+ {[%clk
0:00:24.8]} 42. Kxf4 {[%clk 0:00:23.2]} 42... Kf6 {[%clk 0:00:25.3]} 43. a4
{[%clk 0:00:21.1]} 43... a5 {[%clk 0:00:25.1]} 44. b3 {[%clk 0:00:19.6]} 44...
b6 {[%clk 0:00:25.1]} 45. h4 {[%clk 0:00:19.3]} 45... h5 {[%clk 0:00:25.6]} 46.
Kf3 {[%clk 0:00:18.9]} 46... Ke5 {[%clk 0:00:25]} 47. Ke3 {[%clk 0:00:19.4]}
47... d5 {[%clk 0:00:17.2]} 48. exd5 {[%clk 0:00:19.6]} 48... Kxd5 {[%clk
0:00:18.1]} 49. Kd3 {[%clk 0:00:20.2]} 49... Kc5 {[%clk 0:00:18.1]} 50. Kc3
{[%clk 0:00:20.4]} 50... Kd5 {[%clk 0:00:18.2]} 51. Kd3 {[%clk 0:00:20.5]} 51...
Kc5 {[%clk 0:00:18]} 52. Kc3 {[%clk 0:00:20.6]} 52... Kd5 {[%clk 0:00:18.5]} 53.
Kd3 {[%clk 0:00:21]} 1/2-1/2